fUSD/lending_fUSD_20240318
["ID","MTS","AMOUNT","RATE_DAILY","PERIOD"]
[319424235,1710726675031,-500.0,0.00031998,4]
[319424236,1710726675040,-500.0,0.00031998,4]
[319424237,1710726675049,-130.22805956,0.00031998,4]
[319424238,1710726675178,-150.0,0.0002833,2]
[319424239,1710726675188,-369.77194044,0.00031998,4]
[319424240,1710726675198,-500.0,0.00031998,4]
[319424241,1710726675208,-946.96,0.00031998,4]
[319424242,1710726675218,-500.0,0.00031998,4]
[319424243,1710726675228,-500.0,0.00031998,4]
[319424244,1710726675238,-597.72,0.00031998,4]
[319424245,1710726675247,-1041.25,0.00031998,4]
[319424246,1710726675256,-2687.94049643,0.00031999,2]
[319424247,1710726675266,-5575.1603481,0.00031999,2]
[319424248,1710726675311,-500.0,0.0003178,4]
[319424249,1710726675321,-500.0,0.0003178,4]
[319424250,1710726675331,-500.0,0.0003178,4]
[319424251,1710726675341,-500.0,0.0003178,4]
[319424252,1710726675350,-500.0,0.0003178,4]
[319424253,1710726675359,-1128.75369285,0.00031999,2]
[319424254,1710726675418,-69855.00000002,0.00031999,2]
[319424255,1710726675436,-500.0,0.0003178,4]
[319424256,1710726675445,-60763.40595903,0.00031999,2]
[319424257,1710726675456,-1562.98,0.00031999,4]
[319424258,1710726675465,-1562.98,0.00031999,4]
[319424259,1710726675475,-1562.98,0.00031999,4]
[319424260,1710726675484,-1562.98,0.00031999,4]
[319424261,1710726675494,-1562.98,0.00031999,4]
[319424262,1710726675503,-500.0,0.00031999,4]
[319424263,1710726675513,-500.0,0.00031999,4]
[319424264,1710726675523,-510.2536164,0.00031999,4]
[319424265,1710726675534,-500.0,0.00031999,4]
[319424266,1710726675543,-500.0,0.00031999,4]
[319424267,1710726675553,-500.0,0.00031999,4]
[319424268,1710726675563,-500.0,0.00031999,4]
[319424269,1710726675573,-500.0,0.00031999,4]
[319424270,1710726675583,-500.0,0.00031999,4]
[319424271,1710726675594,-500.0,0.00031999,4]
[319424272,1710726675604,-500.0,0.00031999,4]
[319424273,1710726675614,-500.0,0.00031999,4]
[319424274,1710726675624,-500.0,0.00031999,4]
[319424275,1710726675634,-1073.68,0.00031999,4]
[319424276,1710726675644,-1073.68,0.00031999,4]
[319424277,1710726675656,-1073.68,0.00031999,4]
[319424278,1710726675666,-500.0,0.00031999,4]
[319424279,1710726675679,-500.0,0.00031999,4]
[319424280,1710726675690,-1073.68,0.00031999,4]
[319424281,1710726675703,-500.0,0.00031999,4]
[319424282,1710726675720,-1073.68,0.00031999,4]
[319424283,1710726675746,-500.0,0.00031999,4]
[319424284,1710726675764,-500.0,0.00031999,4]
[319424285,1710726675777,-500.0,0.00031999,4]
[319424286,1710726675796,-500.0,0.00031999,4]
[319424287,1710726675810,-500.0,0.00031999,4]
[319424288,1710726675824,-500.0,0.00031999,4]
[319424289,1710726675834,-500.0,0.00031999,4]
[319424290,1710726675844,-563.53,0.00031999,4]
[319424291,1710726675866,-563.53,0.00031999,4]
[319424292,1710726675886,-563.53,0.00031999,4]
[319424293,1710726675897,-563.53,0.00031999,4]
[319424294,1710726675907,-743.99,0.00031999,4]
[319424295,1710726675919,-563.53,0.00031999,4]
[319424296,1710726675929,-743.99,0.00031999,4]
[319424297,1710726675939,-743.99,0.00031999,4]
[319424298,1710726675950,-743.99,0.00031999,4]
[319424299,1710726675960,-743.99,0.00031999,4]
[319424300,1710726675970,-500.0,0.00031999,4]
[319424301,1710726675981,-500.0,0.00031999,4]
[319424302,1710726675991,-500.0,0.00031999,4]
[319424303,1710726676001,-500.0,0.00031999,4]
[319424304,1710726676010,-500.0,0.00031999,4]
[319424305,1710726676019,-500.0,0.00031999,4]
[319424306,1710726676028,-500.0,0.00031999,4]
[319424307,1710726676038,-500.0,0.00031999,4]
[319424308,1710726676047,-500.0,0.00031999,4]
[319424309,1710726676056,-500.0,0.00031999,4]
[319424310,1710726676065,-500.0,0.00031999,4]
[319424311,1710726676075,-272.24278871,0.00031999,4]
[319424312,1710726676084,-500.0,0.00031999,4]
[319424313,1710726676093,-500.0,0.00031999,4]
[319424314,1710726676102,-500.0,0.00031999,4]
[319424315,1710726676111,-500.0,0.00031999,4]
[319424316,1710726676120,-500.0,0.00031999,4]
[319424317,1710726676129,-500.0,0.00031999,4]
[319424318,1710726676139,-349.66898112,0.00031999,4]
[319424319,1710726676148,-500.0,0.00031999,4]
[319424320,1710726676158,-713.34,0.00031999,4]
[319424321,1710726676167,-713.34,0.00031999,4]
[319424322,1710726676176,-253.90711179,0.00031999,4]
[319424323,1710726676186,-713.34,0.00031999,4]
[319424324,1710726676196,-713.34,0.00031999,4]
[319424325,1710726676206,-713.34,0.00031999,4]
[319424326,1710726676215,-500.0,0.00031999,4]
[319424327,1710726676225,-500.0,0.00031999,4]
[319424328,1710726676234,-213.94650466,0.00031999,4]
[319424329,1710726676244,-500.0,0.00031999,4]
[319424330,1710726676254,-500.0,0.00031999,4]
[319424331,1710726676263,-522.10364811,0.00031999,4]
[319424332,1710726676273,-500.0,0.00031999,4]
[319424333,1710726676282,-500.0,0.00031999,4]
[319424334,1710726676292,-500.0,0.00031999,4]
[319424335,1710726676301,-500.0,0.00031999,4]
[319424336,1710726676311,-500.0,0.00031999,4]
[319424337,1710726676321,-500.0,0.00031999,4]
[319424338,1710726676330,-500.0,0.00031999,4]
[319424339,1710726676340,-500.0,0.00031999,4]
[319424340,1710726676350,-500.0,0.00031999,4]
[319424341,1710726676360,-500.0,0.00031999,4]
[319424342,1710726676370,-500.0,0.00031999,4]
[319424343,1710726676379,-500.0,0.00031999,4]
[319424344,1710726676389,-500.0,0.00031999,4]
[319424345,1710726676398,-500.0,0.00031999,4]
[319424346,1710726676407,-500.0,0.00031999,4]
[319424347,1710726676416,-500.0,0.00031999,4]
[319424348,1710726676426,-500.0,0.00031999,4]
[319424349,1710726676436,-500.0,0.00031999,4]
[319424350,1710726676445,-500.0,0.00031999,4]
[319424351,1710726676549,-269.22990904,0.00031999,4]
[319424352,1710726676559,-1734.88,0.00031999,4]
[319424353,1710726676569,-513.47678254,0.00031999,4]
[319424354,1710726676579,-1734.88,0.00031999,4]
[319424355,1710726676588,-1734.88,0.00031999,4]
[319424356,1710726676599,-1734.88,0.00031999,4]
[319424357,1710726676609,-1734.88,0.00031999,4]
[319424358,1710726676618,-850.61,0.00031999,4]
[319424359,1710726676628,-850.61,0.00031999,4]
[319424360,1710726676639,-850.61,0.00031999,4]
[319424361,1710726676649,-850.61,0.00031999,4]
[319424362,1710726676659,-850.61,0.00031999,4]
[319424363,1710726676669,-500.0,0.00031999,4]
[319424364,1710726676679,-500.0,0.00031999,4]
[319424365,1710726676689,-500.0,0.00031999,4]
[319424366,1710726676698,-500.0,0.00031999,4]
[319424367,1710726676708,-500.0,0.00031999,4]
[319424368,1710726676718,-570.81,0.00031999,4]
[319424369,1710726676727,-570.81,0.00031999,4]
[319424370,1710726676737,-570.81,0.00031999,4]
[319424371,1710726676747,-570.81,0.00031999,4]
[319424372,1710726676756,-570.81,0.00031999,4]
[319424373,1710726676766,-584.7482264,0.00031999,4]
[319424374,1710726676776,-500.0,0.00031999,4]
[319424375,1710726676786,-500.0,0.00031999,4]
[319424376,1710726676796,-521.83692006,0.00031999,4]
[319424377,1710726676806,-500.0,0.00031999,4]
[319424378,1710726676816,-563.35482746,0.00031999,4]
[319424379,1710726676826,-1978.28,0.00031999,4]
[319424380,1710726676836,-1978.28,0.00031999,4]
[319424381,1710726676846,-1978.28,0.00031999,4]
[319424382,1710726676856,-1978.28,0.00031999,4]
[319424383,1710726676865,-1978.28,0.00031999,4]
[319424384,1710726676877,-500.0,0.00031999,4]
[319424385,1710726676887,-500.0,0.00031999,4]
[319424386,1710726676897,-569.83496205,0.00031999,4]
[319424387,1710726676907,-500.0,0.00031999,4]
[319424388,1710726676920,-500.0,0.00031999,4]
[319424389,1710726676932,-514.51204553,0.00031999,4]
[319424390,1710726676943,-242.96374192,0.00031999,4]
[319424391,1710726676954,-526.95141898,0.00031999,4]
[319424392,1710726676965,-583.89,0.00031999,4]
[319424393,1710726676975,-583.89,0.00031999,4]
[319424394,1710726676985,-583.89,0.00031999,4]
[319424395,1710726676995,-583.89,0.00031999,4]
[319424396,1710726677005,-583.89,0.00031999,4]
[319424397,1710726677016,-938.25,0.00031999,4]
[319424398,1710726677026,-938.25,0.00031999,4]
[319424399,1710726677036,-938.25,0.00031999,4]
[319424400,1710726677046,-938.25,0.00031999,4]
[319424401,1710726677055,-938.25,0.00031999,4]
[319424402,1710726677065,-758.32,0.00031999,4]
[319424403,1710726677075,-758.32,0.00031999,4]
[319424404,1710726677085,-758.32,0.00031999,4]
[319424405,1710726677097,-758.32,0.00031999,4]
[319424406,1710726677107,-758.32,0.00031999,4]
[319424407,1710726677118,-641.41,0.00031999,4]
[319424408,1710726677128,-641.41,0.00031999,4]
[319424409,1710726677139,-641.41,0.00031999,4]
[319424410,1710726677148,-641.41,0.00031999,4]
[319424411,1710726677158,-641.41,0.00031999,4]
[319424412,1710726677168,-500.0,0.00031999,4]
[319424413,1710726677178,-500.0,0.00031999,4]
[319424414,1710726677189,-500.0,0.00031999,4]
[319424415,1710726677199,-500.0,0.00031999,4]
[319424416,1710726677209,-500.0,0.00031999,4]
[319424417,1710726677219,-500.0,0.00031999,4]
[319424418,1710726677229,-500.0,0.00031999,4]
[319424419,1710726677239,-500.0,0.00031999,4]
[319424420,1710726677249,-500.0,0.00031999,4]
[319424421,1710726677258,-500.0,0.00031999,4]
[319424422,1710726677269,-500.0,0.00031999,4]
[319424423,1710726677279,-500.0,0.00031999,4]
[319424424,1710726677292,-500.0,0.00031999,4]
[319424425,1710726677302,-500.0,0.00031999,4]
[319424426,1710726677316,-500.0,0.00031999,4]
[319424427,1710726677326,-227.46521524,0.00031999,4]
[319424428,1710726677346,-946.96,0.00031999,4]
[319424429,1710726677359,-946.96,0.00031999,4]
[319424430,1710726677384,-946.96,0.00031999,4]
[319424431,1710726677401,-946.96,0.00031999,4]
[319424432,1710726677412,-946.96,0.00031999,4]
[319424433,1710726677434,-500.0,0.00031999,4]
[319424434,1710726677448,-500.0,0.00031999,4]
[319424435,1710726677457,-500.0,0.00031999,4]
[319424436,1710726677475,-500.0,0.00031999,4]
[319424437,1710726677485,-500.0,0.00031999,4]
[319424438,1710726677520,-246.01607016,0.00031999,4]
[319424439,1710726677540,-597.72,0.00031999,4]
[319424440,1710726677560,-597.72,0.00031999,4]
[319424441,1710726677575,-597.72,0.00031999,4]
[319424442,1710726677593,-597.72,0.00031999,4]
[319424443,1710726677606,-597.72,0.00031999,4]
[319424444,1710726677625,-1041.25,0.00031999,4]
[319424445,1710726677645,-1041.25,0.00031999,4]
[319424446,1710726677666,-1041.25,0.00031999,4]
[319424447,1710726677678,-1041.25,0.00031999,4]
[319424448,1710726677688,-1041.25,0.00031999,4]
[319424449,1710726677708,-1041.25,0.00031999,4]
[319424450,1710726677737,-1041.44770781,0.00031999,4]
[319424451,1710726677750,-22132.97,0.00032,5]
[319424452,1710726677760,-2885.37,0.00032,8]
[319424453,1710726677770,-225.41550844,0.00032,2]
[319424454,1710726677780,-19803.23683673,0.00032,2]
[319424455,1710726677790,-247367.05721332,0.00032,2]
[319424456,1710726677805,-254347.90790307,0.00032,2]
[319424457,1710726677816,-3393.41453596,0.00032,2]
[319424458,1710726677836,-901.91493591,0.00032,2]
[319424459,1710726677908,-793.22381522,0.00030455,2]
[319424460,1710726677934,-672.18501207,0.00030455,2]
[319424461,1710726677946,-2412.082912,0.00030455,2]
[319424462,1710726677965,-1353.848,0.00030455,2]
[319424463,1710726677977,-472.52734588,0.00030455,2]
[319424464,1710726678084,-16989.25149495,0.00030455,2]
[319424465,1710726678101,-26707.51693007,0.00030455,2]
[319424466,1710726678111,-500.0,0.0003178,4]
[319424467,1710726678121,-500.0,0.0003178,4]
[319424468,1710726678130,-500.0,0.0003178,4]
[319424469,1710726678140,-500.0,0.0003178,4]
[319424470,1710726678149,-500.0,0.0003178,4]
[319424471,1710726678159,-500.0,0.0003178,4]
[319424472,1710726678169,-500.0,0.0003178,4]
[319424473,1710726678179,-500.0,0.0003178,4]
[319424474,1710726678189,-500.0,0.0003178,4]
[319424475,1710726678199,-500.0,0.0003178,4]
[319424476,1710726678209,-500.0,0.0003178,4]
[319424477,1710726678218,-2289.49,0.0003178,4]
[319424478,1710726678229,-500.0,0.0003178,4]
[319424479,1710726678328,-2289.49,0.0003178,4]
[319424480,1710726678339,-2289.49,0.0003178,4]
[319424481,1710726678350,-498.69952888,0.00031926,4]
[319424482,1710726678360,-500.0,0.00031926,4]
[319424483,1710726678370,-502843.86667942,0.00032,2]
[319424484,1710726678382,-2226.73053134,0.00032,2]
[319424485,1710726678394,-35555.89807616,0.00032,2]
[319424486,1710726678405,-124000.000111,0.00032,2]
[319424487,1710726679123,13567.48639986,0.00014,2]
[319424494,1710726966145,200.0,0.00022,30]
[319424495,1710727368573,1762.73028619,0.00010424,2]
[319424496,1710727701024,200.0,0.00010372,2]
[319424508,1710727800823,659.78,0.00011244,2]
[319424519,1710727832025,-1286.75969779,0.00012546,2]
[319424522,1710727832208,-1715.27740221,0.00012546,2]
[319424523,1710727832217,-500.0,0.00012638,2]
[319424524,1710727832227,-669.0,0.00012638,2]
[319424525,1710727832236,-150.0,0.00012643,2]
[319424526,1710727832247,-4694.54348131,0.00012644,2]
[319424527,1710727832256,-180.83344926,0.00013,2]
[319424528,1710727832265,-212.50566722,0.00013228,2]
[319424546,1710727838066,-155.0,0.00012545,2]
[319424548,1710727838077,-155.0,0.00012545,2]
[319424550,1710727838087,-37.49433278,0.00013228,2]
[319424552,1710727838096,-550.44,0.00013257,2]
[319424554,1710727838105,-23900.0,0.00013257,2]
[319424556,1710727838115,-905.85,0.00013399,2]
[319424558,1710727838125,-659.78,0.00013508,2]
[319424560,1710727838134,-251.0,0.00013584,2]
[319424562,1710727838143,-2173.54801526,0.00013596,2]
[319424564,1710727838153,-2954.59,0.00013672,2]
[319424566,1710727838162,-500.0,0.00013699,2]
[319424568,1710727838171,-250.0,0.00013699,2]
[319424570,1710727838181,-276.55,0.00013699,2]
[319424572,1710727838190,-170.6994432,0.000138,2]
[319424573,1710727838199,-170.69944319,0.0001385,2]
[319424576,1710727838208,-22203.50975271,0.00013889,2]
[319424578,1710727838217,-1732.74168092,0.00013889,2]
[319424579,1710727838228,-1732.7416809,0.00013889,2]
[319424581,1710727838238,-1732.7416809,0.00013889,2]
[319424584,1710727838247,-1732.7416809,0.00013889,2]
[319424585,1710727838256,-1732.7416809,0.00013889,2]
[319424587,1710727838264,-1732.7416809,0.00013889,2]
[319424589,1710727838274,-1732.7416809,0.00013889,2]
[319424591,1710727838283,-1732.7416809,0.00013889,2]
[319424592,1710727838292,-1732.7416809,0.0001389,2]
[319424593,1710727838301,-155.67171058,0.00013898,2]
[319424594,1710727838311,-168.61318796,0.00013898,2]
[319424595,1710727838320,-282.83741199,0.00013898,2]
[319424596,1710727838330,-233.38470599,0.00013898,2]
[319424597,1710727838340,-429.18027847,0.00013898,2]
[319424598,1710727838350,-155.4041118,0.00013898,2]
[319424599,1710727838359,-341.34048401,0.00013898,2]
[319424600,1710727838368,-287.89461974,0.00013898,2]
[319424601,1710727838378,-155.42697378,0.00013898,2]
[319424603,1710727838387,-214.78488769,0.00013898,2]
[319424604,1710727838396,-272.76319083,0.00013898,2]
[319424606,1710727838405,-232.35503326,0.00013898,2]
[319424607,1710727838414,-542.49257953,0.00013898,2]
[319424608,1710727838423,-195.26086243,0.00013898,2]
[319424609,1710727838432,-329.25233808,0.00013898,2]
[319424610,1710727838442,-158.06222965,0.00013898,2]
[319424611,1710727838451,-155.22920435,0.00013898,2]
[319424612,1710727838459,-660.06076113,0.00013898,2]
[319424613,1710727838469,-5511.86505844,0.00013898,2]
[319424614,1710727838478,-160.53135126,0.00013898,2]
[319424615,1710727838487,-155.10363521,0.00013898,2]
[319424616,1710727838497,-377.00636687,0.00013898,2]
[319424617,1710727838508,-23227.8915716,0.00013899,2]
[319424618,1710727838517,-2018.54998358,0.00013899,2]
[319424619,1710727838527,-237.2107,0.000139,2]
[319424620,1710727838536,-499.99,0.000139,2]
[319424621,1710727838545,-322.29413157,0.000139,2]
[319424622,1710727838554,-434157.26586012,0.000139,2]
[319424623,1710727838567,-10802.65353417,0.000139,2]
[319424624,1710727838577,-200.2638,0.000139,2]
[319424625,1710727838586,-203.85565391,0.000139,2]
[319424626,1710727838595,-1732.7416809,0.000139,2]
[319424627,1710727838605,-184.41986773,0.000139,2]
[319424628,1710727838614,-170.69944319,0.000139,2]
[319424629,1710727838623,-5800.0,0.000139,2]
[319424630,1710727838632,-284.10055186,0.000139,2]
[319424631,1710727838642,-364.91589846,0.000139,2]
[319424632,1710727838651,-275.62593262,0.0001391,2]
[319424633,1710727838660,-275.62593245,0.0001391,2]
[319424634,1710727838670,-275.62593245,0.0001391,2]
[319424635,1710727838679,-275.62593245,0.0001391,2]
[319424636,1710727838689,-275.62593245,0.0001391,2]
[319424637,1710727838698,-275.62593245,0.0001391,2]
[319424638,1710727838707,-275.62593245,0.0001391,2]
[319424639,1710727838717,-275.62593245,0.0001391,2]
[319424640,1710727838726,-275.62593245,0.0001391,2]
[319424641,1710727838735,-275.62593245,0.0001391,2]
[319424642,1710727838744,-275.62593245,0.0001391,2]
[319424643,1710727838753,-275.62593245,0.0001391,2]
[319424644,1710727838762,-275.62593245,0.0001391,2]
[319424645,1710727838771,-275.62593245,0.0001391,2]
[319424646,1710727838780,-275.62593245,0.0001391,2]
[319424647,1710727838789,-275.62593245,0.0001391,2]
[319424648,1710727838798,-275.62593245,0.0001391,2]
[319424649,1710727838807,-275.62593245,0.0001391,2]
[319424650,1710727838815,-275.62593245,0.0001391,2]
[319424651,1710727838825,-275.62593245,0.0001391,2]
[319424652,1710727838834,-161.28,0.00013923,2]
[319424653,1710727838844,-498.87710905,0.00013998,2]
[319424654,1710727838854,-2714.51753238,0.00013998,2]
[319424655,1710727838863,-271.32403785,0.00013998,2]
[319424656,1710727838873,-738.51867529,0.00014,3]
[319424657,1710727838882,-627162.5657632,0.00014,2]
[319424658,1710727838903,-2106.24389323,0.00014,2]
[319424659,1710727838915,-27342.41073848,0.00014,2]
[319424660,1710727838926,-18554.78204861,0.00014,2]
[319424661,1710727838949,-31890362.4729507,0.00014,2]
[319424662,1710727838961,-8211499.61064721,0.00014,2]
[319424663,1710727838972,-1885509.72900998,0.00014,2]
[319424664,1710727838988,-30441.22118976,0.00014,2]
[319424665,1710727838999,-13513.69601934,0.00014,2]
[319424666,1710727839015,-701.1483122,0.00014,2]
[319424667,1710727840072,-38.68404797,0.00014,2]
[319424668,1710727840189,-2674.7583,0.00014,2]
[319424669,1710727840204,-2652.25094195,0.00014,2]
[319424670,1710727840300,-1429.52077831,0.00014,2]
[319424671,1710727840312,-2020.48406964,0.00014,2]
[319424672,1710727840324,-2033.35546494,0.00014,2]
[319424673,1710727840335,-298.90329999,0.00014,2]
[319424716,1710727843043,-1781.47696415,0.00014,2]
[319424718,1710727843055,-50273.56778939,0.00014,2]
[319424721,1710727843066,-84871.12963413,0.00014,2]
[319424740,1710727843316,-80568.51585792,0.00014,2]
[319424741,1710727843330,-260489.36090269,0.00014,2]
[319424742,1710727843342,-1867.58787235,0.00014,2]
[319424743,1710727843353,-2683.90637373,0.00014,2]
[319424744,1710727843364,-6516.27353,0.00014,2]
[319424745,1710727843429,-1080.720004,0.00014,2]
[319424748,1710727846127,-25928.72280001,0.00014,2]
[319424766,1710728065967,925.3288254,0.0001,2]
[319424767,1710728247948,614.57,0.00011423,2]
[319424768,1710728693921,593.78,0.00010481,2]
[319424769,1710728735176,-171.02983029,0.0001238,2]
[319424770,1710728735198,-358.13330688,0.00012381,2]
[319424771,1710728735387,-155.0,0.00012382,2]
[319424772,1710728735409,-548.03033973,0.00012383,2]
[319424773,1710728735430,-200.0,0.00012384,2]
[319424774,1710728735453,-164.71557444,0.00012404,2]
[319424775,1710728735475,-3636.71643812,0.0001244,2]
[319424776,1710728735498,-250.0,0.00012503,2]
[319424777,1710728735520,-183.4,0.00012504,2]
[319424778,1710728735543,-4604.16496541,0.00012517,2]
[319424779,1710728829101,-4124.40985475,0.0001251,2]
[319424780,1710728829131,-19295.83503459,0.00012517,2]
[319424781,1710728829157,-752.64,0.00012543,2]
[319424782,1710728829183,-150.0,0.00012583,2]
[319424783,1710728829211,-164.71557444,0.00012618,2]
[319424784,1710728829238,-593.78,0.00012745,2]
[319424785,1710728829265,-164.71557444,0.00012831,2]
[319424786,1710728829292,-150.57,0.00012876,2]
[319424787,1710728829318,-150.57,0.0001295,2]
[319424788,1710728829343,-2000.0,0.00012982,2]
[319424789,1710728829372,-150.99,0.00012999,2]
[319424790,1710728829398,-150.57,0.00013025,2]
[319424791,1710728829424,-164.71557444,0.00013045,2]
[319424792,1710728829454,-2552.84,0.00013083,2]
[319424793,1710728829480,-150.57,0.00013099,2]
[319424794,1710728829507,-150.57,0.00013174,2]
[319424795,1710728829536,-280.0,0.00013179,2]
[319424796,1710728829565,-150.57,0.00013249,2]
[319424797,1710728829590,-164.71557444,0.00013258,2]
[319424798,1710728829614,-275.23950054,0.00013296,2]
[319424799,1710728838175,-158.90436964,0.00012517,2]
[319424800,1710728838194,-222.49979571,0.00013296,2]
[319424801,1710728838213,-1352.99,0.00013299,2]
[319424802,1710728838232,-150.57,0.00013323,2]
[319424803,1710728838252,-150.57,0.00013398,2]
[319424804,1710728838272,-164.71557444,0.00013472,2]
[319424805,1710728838291,-150.57,0.00013472,2]
[319424806,1710728838311,-499.99,0.00013484,2]
[319424807,1710728838331,-150.57,0.00013547,2]
[319424808,1710728838350,-184.43,0.00013584,2]
[319424809,1710728838371,-164.71557444,0.00013685,2]
[319424810,1710728838391,-276.55,0.00013699,2]
[319424811,1710728838410,-500.0,0.00013699,2]
[319424812,1710728838430,-250.0,0.00013699,2]
[319424813,1710728838449,-150.0,0.00013736,2]
[319424814,1710728838467,-150.0,0.00013859,2]
[319424815,1710728838486,-2004.54091209,0.00013899,2]
[319424816,1710728850095,-495.45908791,0.00013899,2]
[319424817,1710728850116,-2500.0,0.00013899,2]
[319424818,1710728850139,-164.71557444,0.00013899,2]
[319424819,1710728850159,-231.3974254,0.00013899,2]
[319424820,1710728850181,-270.47939098,0.00013899,2]
[319424821,1710728850202,-433.23373042,0.00013899,2]
[319424822,1710728850222,-151.02538849,0.00013899,2]
[319424823,1710728850242,-270.47939096,0.000139,2]
[319424824,1710728850266,-433.23373041,0.000139,2]
[319424825,1710728850287,-763.54088119,0.000139,2]
[319424826,1710728850307,-270.47939096,0.000139,2]
[319424827,1710728850326,-433.23373041,0.000139,2]
[319424828,1710728850345,-12829.60142169,0.0001391,2]
[319424829,1710728850364,-47112.38640019,0.0001399,2]
[319424830,1710728850385,-34573.63717395,0.00013996,2]
[319424831,1710728850404,-310.3626192,0.00013996,2]
[319424832,1710728850423,-155.70599111,0.00013996,2]
[319424833,1710728850442,-167.86491014,0.00013996,2]
[319424834,1710728850462,-321.23900899,0.00013996,2]
[319424835,1710728850485,-601.59974256,0.00013997,2]
[319424836,1710728850504,-1066.03999107,0.00013997,2]
[319424837,1710728850529,-7183.15970167,0.00013997,2]
[319424838,1710728850548,-155.0,0.00013997,2]
[319424839,1710728850568,-155.93479794,0.00013997,2]
[319424840,1710728850588,-2648.88442516,0.00013997,2]
[319424861,1710729032144,-500.0,0.00013859,2]
[319424863,1710729032154,-3000.0,0.0001386,2]
[319424864,1710729032164,-395.970416,0.00013973,2]
[319424865,1710729032174,-724.34274707,0.00013997,2]
[319424866,1710729032184,-1944.95843721,0.00013997,2]
[319424867,1710729032193,-246.52434352,0.00013997,2]
[319424868,1710729032203,-5.58310177,0.00013997,2]
[319424869,1710729032510,-251.27663931,0.00013997,2]
[319424870,1710729032522,-183.11064757,0.00013997,2]
[319424871,1710729032532,-580.66596683,0.00013997,2]
[319424872,1710729032541,-155.0,0.00013997,2]
[319424873,1710729032551,-479.78627903,0.00013998,2]
[319424874,1710729032560,-199.2820579,0.00013998,2]
[319424875,1710729032570,-1779.90508867,0.00013998,2]
[319424907,1710729038169,-150.23052561,0.00013998,2]
[319424909,1710729038179,-301.26912703,0.00013998,2]
[319424911,1710729038189,-155.22608277,0.00013998,2]
[319424935,1710729038417,-155.16353083,0.00013998,2]
[319424936,1710729038443,-156.17258518,0.00013998,2]
[319424937,1710729038453,-791.17617228,0.00013998,2]
[319424938,1710729038463,-156.79071611,0.00013998,2]
[319424939,1710729038472,-618.83336953,0.00013998,2]
[319424940,1710729038481,-270.49569636,0.00013998,2]
[319424941,1710729038491,-2253.09011434,0.00013998,2]
[319424942,1710729038613,-17174.5551663,0.00013998,2]
[319424943,1710729038625,-5687155.6024748,0.00013998,2]
[319424945,1710729038634,-659.66135294,0.00013999,2]
[319424947,1710729038643,-361.22950237,0.00013999,2]
[319424948,1710729038652,-235.30195878,0.00013999,2]
[319424949,1710729038665,-445.66748556,0.00013999,2]
[319424950,1710729038676,-155.31994921,0.00013999,2]
[319424951,1710729038686,-3019.8550025,0.00013999,2]
[319424952,1710729038695,-410.61281566,0.00013999,2]
[319424953,1710729038705,-1234.9125489,0.00013999,2]
[319424954,1710729038714,-205.96137341,0.00013999,2]
[319424955,1710729038723,-155.92768559,0.00013999,2]
[319424956,1710729038732,-155.31551759,0.00013999,2]
[319424957,1710729038742,-168.45653211,0.00013999,2]
[319424958,1710729038751,-1054.93464841,0.00013999,2]
[319424959,1710729038763,-155.27670062,0.00013999,2]
[319424960,1710729038774,-1552439.76909686,0.00013999,2]
[319424961,1710729038783,-450.29192215,0.00014,3]
[319424962,1710729038793,-963035.51407975,0.00014,2]
[319424963,1710729038805,-1885509.72900998,0.00014,2]
[319424964,1710729038829,-338.595,0.00014,2]
[319424965,1710729038851,-16256.68784175,0.00014,2]